bitfinex-derivatives/quotes_BTCF0:USTF0_20260118
["timestamp","ask_amount","ask_price","bid_price","bid_amount"]
[1768776651176,0.010474,95505.0,95497.0,0.09174715]
[1768776651480,0.010474,95506.0,95497.0,0.09174715]
[1768776651779,0.010474,95505.0,95497.0,0.09174715]
[1768776653272,0.09428,95517.0,95497.0,0.09174715]
[1768776653583,0.010473,95515.0,95497.0,0.09174715]
[1768776653981,0.010473,95511.0,95497.0,0.09174715]
[1768776654179,0.010473,95509.0,95497.0,0.10222215]
[1768776654876,0.010473,95515.0,95497.0,0.09174715]
[1768776655077,0.010473,95512.0,95497.0,0.09174715]
[1768776655266,0.02246266,95511.0,95497.0,0.09174715]
[1768776655471,0.02246266,95510.0,95497.0,0.09174715]
[1768776655668,0.02246266,95509.0,95497.0,0.09174715]
[1768776655877,0.010474,95507.0,95497.0,0.09174715]
[1768776656177,0.010473,95508.0,95497.0,0.09174715]
[1768776656376,0.0224631,95507.0,95497.0,0.09174715]
[1768776656578,0.010473,95508.0,95497.0,0.09174715]
[1768776656779,0.0224631,95507.0,95497.0,0.09174715]
[1768776656979,0.010473,95508.0,95497.0,0.09174715]
[1768776657175,0.0224631,95507.0,95497.0,0.09174715]
[1768776657374,0.010473,95508.0,95497.0,0.09174715]
[1768776657580,0.02246319,95507.0,95497.0,0.09174715]
[1768776657781,0.010473,95508.0,95497.0,0.09174715]
[1768776657978,0.02246319,95507.0,95497.0,0.09174715]
[1768776658193,0.010473,95512.0,95497.0,0.09174715]
[1768776658482,0.010474,95508.0,95497.0,0.09174715]
[1768776658684,0.02246329,95507.0,95497.0,0.09174715]
[1768776658983,0.010474,95508.0,95497.0,0.10222215]
[1768776659183,0.02246329,95507.0,95497.0,0.10222215]
[1768776659386,0.010473,95510.0,95497.0,0.09174715]
[1768776659587,0.010474,95506.0,95497.0,0.09174715]
[1768776663382,0.010473,95512.0,95497.0,0.09174715]
[1768776663584,0.010474,95507.0,95497.0,0.09174715]
[1768776664582,0.010473,95512.0,95497.0,0.09174715]
[1768776664777,0.010474,95507.0,95497.0,0.09174715]
[1768776665276,0.010474,95506.0,95497.0,0.09174715]
[1768776665689,0.010473,95513.0,95497.0,0.09174715]
[1768776665993,0.010474,95506.0,95497.0,0.09174715]
[1768776666285,0.010473,95509.0,95497.0,0.09174715]
[1768776666487,0.02246384,95508.0,95497.0,0.09174715]
[1768776666785,0.010474,95506.0,95497.0,0.09174715]
[1768776668090,0.010474,95508.0,95497.0,0.10222215]
[1768776668294,0.02246423,95507.0,95497.0,0.10222215]
[1768776668484,0.010474,95508.0,95498.0,0.010475]
[1768776668686,0.02246459,95507.0,95498.0,0.010475]
[1768776668881,0.010473,95510.0,95499.0,0.010474]
[1768776669082,0.02246458,95509.0,95498.0,0.010475]
[1768776669389,0.03293858,95508.0,95498.0,0.010475]
[1768776669591,0.02246458,95507.0,95498.0,0.010475]
[1768776670193,0.02246458,95507.0,95497.0,0.09174715]
[1768776670396,0.010474,95508.0,95497.0,0.10222215]
[1768776670684,0.02246583,95507.0,95497.0,0.10222215]
[1768776670887,0.09428,95518.0,95497.0,0.09174715]
[1768776671088,0.02246583,95517.0,95497.0,0.09174715]
[1768776671291,0.010474,95508.0,95497.0,0.09174715]
[1768776671492,0.02246583,95507.0,95497.0,0.09174715]
[1768776671804,0.02246583,95507.0,95497.0,0.10222215]
[1768776672086,0.010474,95508.0,95497.0,0.10222215]
[1768776672284,0.010473,95516.0,95499.0,0.09497444]
[1768776672787,0.06873981,95527.0,95493.0,0.09428]
[1768776672788,0.07538782,95534.0,95505.0,0.07960681]
[1768776672996,0.07538782,95534.0,95500.0,0.10435916]
[1768776672997,0.04105655,95539.0,95520.0,0.07960681]
[1768776673289,0.01047,95537.0,95521.0,0.09428]
[1768776673482,0.11478187,95540.0,95525.0,0.010472]
[1768776673791,0.11478187,95540.0,95524.0,0.010472]
[1768776673792,0.10431187,95540.0,95524.0,0.010472]
[1768776673988,0.01047,95536.0,95522.0,0.010472]
[1768776674182,0.010471,95535.0,95521.0,0.104752]
[1768776674383,0.010471,95535.0,95522.0,0.010472]
[1768776674793,0.010471,95535.0,95521.0,0.09428]
[1768776675092,0.010471,95534.0,95521.0,0.09428]
[1768776675284,0.010471,95534.0,95521.0,0.104752]
[1768776675479,0.10431187,95540.0,95521.0,0.09428]
[1768776675685,0.010471,95535.0,95521.0,0.104752]
[1768776676086,0.010471,95535.0,95514.0,0.010473]
[1768776676087,0.010471,95533.0,95518.0,0.010472]
[1768776676293,0.1022759,95529.0,95518.0,0.104752]
[1768776676487,0.1022759,95529.0,95519.0,0.010472]
[1768776676683,0.09256427,95529.0,95520.0,0.010472]
[1768776677393,0.09356427,95529.0,95520.0,0.010472]
[1768776677589,0.09356427,95529.0,95518.0,0.09428]
[1768776677894,0.10403527,95529.0,95518.0,0.09428]
[1768776678193,0.10303527,95529.0,95518.0,0.09428]
[1768776678392,0.10303527,95529.0,95518.0,0.104752]
[1768776678893,0.010471,95527.0,95518.0,0.09428]
[1768776679194,0.10303527,95529.0,95518.0,0.09428]
[1768776680289,0.09256427,95529.0,95518.0,0.09428]
[1768776680698,0.10303527,95529.0,95520.0,0.010472]
[1768776685902,0.09256427,95529.0,95520.0,0.010472]
[1768776686102,0.09256427,95529.0,95519.0,0.10431187]
[1768776686601,0.09256427,95529.0,95519.0,0.11478387]
[1768776686803,0.010471,95528.0,95519.0,0.10431187]
[1768776688104,0.010472,95527.0,95518.0,0.10431187]
[1768776688407,0.010472,95526.0,95518.0,0.10431187]
[1768776688705,0.10185217,95529.0,95518.0,0.010472]
[1768776688706,0.010471,95528.0,95518.0,0.010472]
[1768776691007,0.010471,95528.0,95518.0,0.11478387]
[1768776691407,0.010471,95527.0,95518.0,0.11478387]
[1768776693408,0.010472,95526.0,95518.0,0.10431187]
[1768776693908,0.10303527,95529.0,95518.0,0.10431187]
[1768776694708,0.10303527,95529.0,95518.0,0.11478387]
[1768776695307,0.09256427,95529.0,95518.0,0.11478387]
[1768776696107,0.10303527,95529.0,95518.0,0.11478387]
[1768776699512,0.10303527,95529.0,95519.0,0.10431187]
[1768776701008,0.10303527,95529.0,95519.0,0.11478387]
[1768776701213,0.10303527,95529.0,95519.0,0.010472]
[1768776709113,0.10303527,95529.0,95519.0,0.11478387]
[1768776710016,0.010471,95528.0,95519.0,0.10431187]
[1768776711616,0.11912532,95528.0,95519.0,0.10431187]
[1768776712520,0.11912532,95528.0,95518.0,0.010472]
[1768776712920,0.010471,95527.0,95513.0,0.09428]
[1768776713219,0.010471,95527.0,95517.0,0.010472]
[1768776716021,0.10355367,95527.0,95517.0,0.010472]
[1768776722333,0.1133086,95527.0,95517.0,0.010472]
[1768776722628,0.1133086,95527.0,95513.0,0.09428]
[1768776723229,0.09308267,95525.0,95513.0,0.09428]
[1768776723431,0.09308267,95525.0,95517.0,0.010472]
[1768776723829,0.10355467,95525.0,95517.0,0.010472]
[1768776724030,0.10355467,95525.0,95516.0,0.010473]
[1768776725735,0.10355467,95525.0,95517.0,0.010472]
[1768776727534,0.09308267,95525.0,95517.0,0.010472]
[1768776727835,0.1028376,95525.0,95517.0,0.010472]
[1768776729932,0.1028376,95525.0,95518.0,0.010472]
[1768776730136,0.1028376,95525.0,95513.0,0.09428]
[1768776731038,0.1028376,95525.0,95510.0,0.11478487]
[1768776731237,0.1028376,95525.0,95514.0,0.010473]
[1768776731732,0.09308267,95522.0,95511.0,0.104753]
[1768776731939,0.1028376,95522.0,95512.0,0.010473]
[1768776732134,0.1028376,95522.0,95511.0,0.09428]
[1768776732637,0.1028376,95522.0,95517.0,0.010472]
[1768776733436,0.1028376,95518.0,95509.0,0.00230346]
[1768776733637,0.09308267,95518.0,95510.0,0.010473]
[1768776733832,0.010472,95522.0,95516.0,0.010473]
[1768776734342,0.010472,95523.0,95517.0,0.010472]
[1768776739246,0.1028376,95524.0,95517.0,0.010472]
[1768776739447,0.1028376,95524.0,95518.0,0.010472]
[1768776742249,0.1028376,95524.0,95516.0,0.010473]
[1768776743647,0.10161435,95523.0,95516.0,0.010473]
[1768776743847,0.09258719,95521.0,95511.0,0.010473]
[1768776744651,0.09258719,95521.0,95517.0,0.010472]
[1768776749552,0.09258719,95521.0,95518.0,0.010472]
[1768776754859,0.09258719,95521.0,95519.0,0.010472]
[1768776757662,0.09258719,95521.0,95520.0,0.010472]
[1768776758573,0.09258719,95521.0,95515.0,0.010473]
[1768776759272,0.09258719,95521.0,95520.0,0.010472]
[1768776759673,1.9e-07,95521.0,95520.0,0.010472]
[1768776763076,7.5e-07,95525.0,95512.0,0.010473]
[1768776763273,0.09428,95532.0,95510.0,0.05657578]
[1768776763477,0.02224154,95531.0,95525.0,0.010472]
[1768776763678,0.02224154,95530.0,95511.0,0.010473]
[1768776763978,0.09428,95532.0,95526.0,0.010471]
[1768776764177,0.0222415,95531.0,95526.0,0.010471]
[1768776764373,0.0222415,95530.0,95526.0,0.010471]
[1768776764573,0.09428,95532.0,95511.0,0.010473]
[1768776764776,0.02224133,95531.0,95524.0,0.010472]
[1768776764975,0.02224133,95530.0,95525.0,0.010472]
[1768776765177,0.00978262,95529.0,95509.0,0.05887924]
[1768776765373,0.00978262,95529.0,95523.0,0.010472]
[1768776765680,0.00978262,95528.0,95512.0,0.010473]
[1768776765978,0.00978262,95528.0,95522.0,0.010472]
[1768776766476,0.00978262,95528.0,95509.0,0.05887924]
[1768776766778,0.00978262,95528.0,95514.0,0.010473]
[1768776767083,0.00978262,95528.0,95522.0,0.010472]
[1768776768383,0.09858513,95527.0,95523.0,0.010472]
[1768776769281,0.09858513,95527.0,95522.0,0.010472]
[1768776769783,0.09858513,95527.0,95523.0,0.010472]
[1768776770887,0.09858513,95527.0,95522.0,0.010472]
[1768776771079,0.09858513,95527.0,95521.0,0.010472]
[1768776771380,0.09858513,95527.0,95522.0,0.010472]
[1768776771984,0.00978262,95523.0,95510.0,0.010473]
[1768776772185,0.00978262,95522.0,95515.0,0.010473]
[1768776772589,0.09858513,95523.0,95515.0,0.010473]
[1768776772887,0.010472,95525.0,95516.0,0.010473]
[1768776774993,0.010472,95525.0,95517.0,0.010472]
[1768776775484,0.010472,95521.0,95509.0,0.00230346]
[1768776775691,0.00906054,95519.0,95509.0,0.00230346]
[1768776776388,0.00906054,95519.0,95511.0,0.010473]
[1768776777592,0.1039047,95520.0,95507.0,0.010474]
[1768776777593,0.00906054,95516.0,95507.0,0.010474]
[1768776778393,0.00906054,95516.0,95510.0,0.010473]
[1768776780195,0.0934327,95517.0,95510.0,0.010473]
[1768776780583,0.0934327,95517.0,95504.0,0.00230357]
[1768776780783,0.1039057,95517.0,95509.0,0.010473]
[1768776781080,0.13439908,95517.0,95505.0,0.010474]
[1768776781283,0.0934327,95517.0,95505.0,0.010474]
[1768776781681,0.0934327,95517.0,95511.0,0.010473]
[1768776782589,0.0934327,95517.0,95512.0,0.010473]
[1768776787701,0.0934327,95517.0,95510.0,0.010473]
[1768776788995,0.0934327,95517.0,95511.0,0.010473]
[1768776789198,0.0934327,95517.0,95510.0,0.010473]
[1768776789381,0.0934327,95517.0,95504.0,0.00230357]
[1768776789585,0.010473,95516.0,95507.0,0.010474]
[1768776790390,0.0934327,95517.0,95504.0,0.00230357]
[1768776791394,0.010473,95515.0,95507.0,0.010474]
[1768776793198,0.0934327,95517.0,95505.0,0.10434379]
[1768776793594,0.010473,95516.0,95508.0,0.010473]
[1768776794097,0.1039057,95517.0,95505.0,0.010474]
[1768776794401,0.1039057,95517.0,95510.0,0.010473]
[1768776795099,0.1039057,95517.0,95511.0,0.010473]
[1768776797305,0.010473,95516.0,95504.0,0.00230357]
[1768776797490,0.010473,95511.0,95505.0,0.010474]
[1768776797693,0.010473,95513.0,95505.0,0.010474]
[1768776797894,0.010473,95513.0,95506.0,0.010474]
[1768776800496,0.0934327,95517.0,95504.0,0.00230357]
[1768776800497,0.010473,95516.0,95504.0,0.00230357]
[1768776800697,0.010473,95514.0,95506.0,0.010474]
[1768776801109,0.010473,95513.0,95505.0,0.010474]
[1768776801617,0.010473,95514.0,95506.0,0.010474]
[1768776809015,0.010473,95513.0,95504.0,0.00230357]
[1768776810014,0.010473,95513.0,95504.0,0.01277757]
[1768776810317,0.010473,95512.0,95504.0,0.01277757]
[1768776810915,0.010473,95511.0,95504.0,0.01277757]
[1768776814720,0.010473,95510.0,95504.0,0.00230357]
[1768776816421,0.010473,95513.0,95504.0,0.00230357]
[1768776818621,0.0201243,95520.0,95504.0,0.00230357]
[1768776818813,0.010473,95517.0,95505.0,0.010474]
[1768776819012,0.09428,95521.0,95507.0,0.10434379]
[1768776819212,0.010473,95516.0,95510.0,0.10434379]
[1768776819525,0.010473,95516.0,95506.0,0.10434379]
[1768776820128,0.09428,95521.0,95506.0,0.10434379]
[1768776820426,0.010473,95517.0,95510.0,0.10434379]
[1768776820614,0.010473,95517.0,95507.0,0.10434379]
[1768776821425,0.09428,95521.0,95507.0,0.10434379]
[1768776821616,0.09428,95521.0,95510.0,0.10434379]
[1768776821815,0.010473,95517.0,95505.0,0.010474]
[1768776822016,0.010473,95517.0,95507.0,0.10434379]
[1768776823732,0.010473,95517.0,95507.0,0.11481779]
[1768776824922,0.010473,95517.0,95505.0,0.010474]
[1768776825129,0.010473,95517.0,95507.0,0.10434379]
[1768776825321,0.010473,95517.0,95507.0,0.010474]
[1768776826124,0.010473,95516.0,95504.0,0.00230357]
[1768776827330,0.010473,95517.0,95507.0,0.010474]
[1768776828229,0.010473,95517.0,95508.0,0.010473]
[1768776828530,0.010473,95516.0,95507.0,0.010474]
[1768776829131,0.010472,95520.0,95504.0,0.01213759]
[1768776829732,0.010473,95516.0,95507.0,0.010474]
[1768776832833,0.010473,95516.0,95508.0,0.010473]
[1768776834434,0.010472,95520.0,95509.0,0.00978814]
[1768776834647,0.010473,95516.0,95509.0,0.00978814]
[1768776835048,0.010473,95516.0,95508.0,0.010473]
[1768776836158,0.010472,95518.0,95508.0,0.010473]
[1768776837548,0.010473,95517.0,95508.0,0.010473]
[1768776839446,0.010472,95518.0,95508.0,0.010473]
[1768776840154,0.010473,95517.0,95508.0,0.010473]
[1768776840353,0.010472,95518.0,95508.0,0.010473]
[1768776840647,0.010472,95519.0,95509.0,0.010473]
[1768776841652,0.010472,95518.0,95509.0,0.010473]
[1768776841847,0.010472,95522.0,95508.0,0.010473]
[1768776842146,0.010473,95517.0,95508.0,0.010473]
[1768776843151,0.010473,95516.0,95507.0,0.010474]
[1768776843949,0.010473,95517.0,95508.0,0.010473]
[1768776844545,0.010473,95517.0,95504.0,0.00230357]
[1768776844546,0.010472,95521.0,95504.0,0.00230357]
[1768776844740,0.09864128,95523.0,95504.0,0.00230357]
[1768776844941,0.010473,95517.0,95508.0,0.010473]
[1768776845138,0.010473,95516.0,95506.0,0.010474]
[1768776845632,0.010473,95516.0,95504.0,0.00230357]
[1768776845837,0.010473,95516.0,95507.0,0.010474]
[1768776846249,0.010473,95517.0,95508.0,0.010473]
[1768776846446,0.010473,95516.0,95508.0,0.010473]
[1768776846947,0.010472,95518.0,95508.0,0.010473]
[1768776847452,0.010473,95517.0,95508.0,0.010473]
[1768776851150,0.010473,95516.0,95508.0,0.010473]
[1768776853950,0.09428,95528.0,95508.0,0.00978814]
[1768776854250,0.010472,95525.0,95513.0,0.00978814]
[1768776854454,0.010472,95524.0,95514.0,0.02026114]
[1768776854952,0.010472,95523.0,95514.0,0.00978814]
[1768776855844,0.010472,95526.0,95514.0,0.00978814]
[1768776856050,0.010472,95526.0,95513.0,0.09937607]
[1768776856051,0.010472,95522.0,95513.0,0.09937607]
[1768776856656,0.01277398,95529.0,95513.0,0.09937607]
[1768776856850,0.010472,95526.0,95516.0,0.010473]
[1768776857157,0.010472,95525.0,95515.0,0.010473]
[1768776857656,0.010472,95524.0,95513.0,0.10984907]
[1768776857843,0.010472,95524.0,95514.0,0.010473]
[1768776861254,0.010471,95528.0,95518.0,0.010472]
[1768776861450,0.02250241,95527.0,95518.0,0.010472]
[1768776861751,0.010471,95528.0,95518.0,0.010472]
[1768776861948,0.02250239,95527.0,95518.0,0.010472]
[1768776862147,0.010471,95528.0,95518.0,0.010472]
[1768776862347,0.02250171,95527.0,95518.0,0.010472]
[1768776862651,0.010471,95528.0,95515.0,0.00978814]
[1768776862652,0.010471,95528.0,95517.0,0.010472]
[1768776862853,0.02250171,95527.0,95517.0,0.010472]
[1768776863045,0.010471,95528.0,95517.0,0.010472]
[1768776863244,0.02250162,95527.0,95517.0,0.010472]
[1768776863546,0.010471,95527.0,95517.0,0.010472]
[1768776863746,0.00230298,95529.0,95516.0,0.010473]
[1768776864045,0.010471,95527.0,95517.0,0.010472]
[1768776864251,0.010472,95526.0,95516.0,0.02019868]
[1768776866252,0.010471,95527.0,95516.0,0.00972568]
[1768776867051,0.010471,95527.0,95517.0,0.010472]
[1768776867248,0.00230298,95529.0,95518.0,0.09329188]
[1768776867449,0.02249991,95528.0,95521.0,0.00972568]
[1768776867751,0.02249991,95528.0,95520.0,0.09329188]
[1768776867752,0.02249991,95527.0,95520.0,0.09329188]
[1768776867953,0.00230298,95529.0,95520.0,0.09329188]
[1768776868153,0.02249985,95528.0,95520.0,0.09329188]
[1768776868338,0.010472,95526.0,95520.0,0.09329188]
[1768776868539,0.00230298,95529.0,95520.0,0.09329188]
[1768776868745,0.010472,95526.0,95520.0,0.09329188]
[1768776869046,0.010471,95528.0,95520.0,0.09329188]
[1768776869247,0.02249959,95527.0,95520.0,0.09329188]
[1768776869443,0.010468,95556.0,95539.0,0.0095068]
[1768776869751,0.010467,95567.0,95549.0,0.10279868]
[1768776870054,0.02248925,95566.0,95553.0,0.10279868]
[1768776870253,0.02248925,95565.0,95554.0,0.09428]
[1768776870454,0.01,95565.0,95554.0,0.09428]
[1768776873956,0.020467,95565.0,95554.0,0.09428]
[1768776874364,0.01,95565.0,95554.0,0.09428]
[1768776874751,0.020467,95565.0,95554.0,0.09428]
[1768776874950,0.01,95565.0,95554.0,0.09428]
[1768776876059,0.010467,95564.0,95554.0,0.09428]
[1768776876254,0.01,95564.0,95554.0,0.09428]
[1768776884760,0.00230201,95569.0,95556.0,0.0082803]
[1768776884962,0.00230201,95569.0,95556.0,0.10306455]
[1768776885265,0.00230201,95569.0,95557.0,0.00830707]
[1768776885468,0.00908114,95582.0,95562.0,0.09478425]
[1768776885661,0.00908114,95571.0,95559.0,0.09424]
[1768776885862,0.020696,95589.0,95560.0,0.00830707]
[1768776886059,0.00908114,95580.0,95561.0,0.09478425]
[1768776886267,0.00908114,95580.0,95561.0,0.18902425]
[1768776886564,0.00908114,95579.0,95561.0,0.18902425]
[1768776886964,0.03908114,95579.0,95561.0,0.18902425]
[1768776887164,0.00908114,95579.0,95561.0,0.18902425]
[1768776887363,0.00908114,95582.0,95562.0,0.10357859]
[1768776887564,0.00908114,95582.0,95563.0,0.10357859]
[1768776887965,0.00908114,95586.0,95563.0,0.10357859]
[1768776888170,0.00908114,95586.0,95564.0,0.01926134]
[1768776888171,0.03908114,95586.0,95564.0,0.01926134]
[1768776888463,0.00908114,95586.0,95564.0,0.01926134]
[1768776888664,0.00908114,95586.0,95564.0,0.11404559]
[1768776889066,0.00908114,95586.0,95566.0,0.010467]
[1768776889373,0.00908114,95586.0,95565.0,0.01958475]
[1768776889673,0.00908114,95586.0,95565.0,0.00911775]
[1768776889868,0.00908114,95586.0,95566.0,0.010467]
[1768776890562,0.00908114,95586.0,95565.0,0.00911775]
[1768776890760,0.05992812,95589.0,95567.0,0.10471183]
[1768776890965,0.05992812,95589.0,95569.0,0.00992758]
[1768776891873,0.05992812,95589.0,95569.0,0.10471183]
[1768776892062,0.05992812,95589.0,95570.0,0.00992758]
[1768776893776,0.07559762,95589.0,95570.0,0.00992758]
[1768776894178,0.08606262,95589.0,95570.0,0.00992758]
[1768776894680,0.07559762,95589.0,95570.0,0.00992758]
[1768776895180,0.0156695,95585.0,95568.0,0.010467]
[1768776895674,0.09524381,95586.0,95568.0,0.010467]
[1768776895979,0.09524381,95586.0,95569.0,0.010467]
[1768776896180,0.09524381,95586.0,95567.0,0.10920778]
[1768776896773,0.07559762,95589.0,95568.0,0.01496778]
[1768776896971,0.07559762,95589.0,95571.0,0.010467]
[1768776897674,0.07559762,95589.0,95569.0,0.010467]
[1768776897879,0.0156695,95584.0,95570.0,0.010467]
[1768776898271,0.09524381,95585.0,95570.0,0.010467]
[1768776898580,0.0156695,95588.0,95570.0,0.010467]
[1768776898975,0.02220443,95587.0,95570.0,0.010467]
[1768776899173,0.02220443,95586.0,95570.0,0.010467]
[1768776899474,0.02220443,95585.0,95570.0,0.010467]
[1768776899678,0.02220443,95584.0,95570.0,0.010467]
[1768776899880,0.02220443,95583.0,95570.0,0.010467]
[1768776900081,0.0156695,95588.0,95571.0,0.010467]
[1768776900379,0.02222264,95587.0,95568.0,0.01496778]
[1768776900580,0.0156695,95585.0,95567.0,0.09424]
[1768776900780,0.0156695,95583.0,95567.0,0.09424]
[1768776900980,0.0156695,95583.0,95568.0,0.010467]
[1768776901274,0.0156695,95583.0,95567.0,0.104707]
[1768776901676,0.0156695,95583.0,95568.0,0.010467]
[1768776902683,0.0156695,95583.0,95567.0,0.09424]
[1768776903378,0.0756695,95583.0,95567.0,0.09424]
[1768776903581,0.06,95583.0,95567.0,0.09424]
[1768776906279,0.0156695,95577.0,95567.0,0.09424]
[1768776906485,0.0156695,95575.0,95567.0,0.0553872]
[1768776906677,0.0656695,95575.0,95567.0,0.0553872]
[1768776906884,0.05,95575.0,95567.0,0.0553872]
[1768776908685,0.05,95575.0,95564.0,0.010467]
[1768776908988,0.05,95575.0,95565.0,0.010467]
[1768776909885,0.11091331,95582.0,95560.0,0.10920778]
[1768776910080,0.16091331,95582.0,95566.0,0.010467]
[1768776910582,0.16091331,95582.0,95560.0,0.10920778]
[1768776910583,0.05,95582.0,95568.0,0.01496778]
[1768776910777,0.05,95582.0,95573.0,0.010466]
[1768776910984,0.05,95582.0,95574.0,0.010466]
[1768776911282,0.05,95582.0,95570.0,0.01496778]
[1768776911283,0.15416812,95589.0,95570.0,0.01496778]
[1768776911589,0.02223533,95588.0,95573.0,0.010466]
[1768776911788,0.02223533,95587.0,95573.0,0.010466]
[1768776911989,0.02223533,95586.0,95574.0,0.010466]
[1768776912289,0.02223533,95585.0,95574.0,0.010466]
[1768776912591,0.02223533,95584.0,95574.0,0.010466]
[1768776912790,0.07223533,95584.0,95574.0,0.010466]
[1768776912991,0.02223533,95583.0,95575.0,0.010466]
[1768776913191,0.07223533,95583.0,95572.0,0.01496778]
[1768776913382,0.12642915,95582.0,95569.0,0.01496778]
[1768776913581,0.15419382,95582.0,95569.0,0.01496778]
[1768776913788,0.15419382,95582.0,95571.0,0.010466]
[1768776914192,0.02225012,95581.0,95572.0,0.010466]
[1768776914390,0.05,95581.0,95572.0,0.010466]
[1768776915191,0.02225714,95580.0,95572.0,0.010466]
[1768776915385,0.05,95580.0,95566.0,0.01496778]
[1768776915591,0.05,95580.0,95567.0,0.010467]
[1768776915787,0.05,95580.0,95568.0,0.010467]
[1768776916088,0.05,95580.0,95566.0,0.01496778]
[1768776916592,0.05,95580.0,95572.0,0.010466]
[1768776917195,0.02226732,95579.0,95572.0,0.010466]
[1768776917386,0.06,95579.0,95572.0,0.010466]
[1768776918089,0.06,95579.0,95573.0,0.010466]
[1768776918489,0.10419382,95582.0,95573.0,0.010466]
[1768776918693,0.02219817,95581.0,95573.0,0.010466]
[1768776918989,0.02219817,95580.0,95573.0,0.010466]
[1768776919189,1.7e-07,95579.0,95573.0,0.010466]
[1768776919390,0.03,95579.0,95573.0,0.010466]
[1768776919590,0.05,95579.0,95573.0,0.010466]
[1768776919798,0.03,95579.0,95573.0,0.010466]
[1768776919995,0.05,95579.0,95573.0,0.010466]
[1768776920200,0.10419382,95582.0,95574.0,0.010466]
[1768776920401,0.15419382,95582.0,95574.0,0.010466]
[1768776921400,0.15419382,95582.0,95570.0,0.010467]
[1768776921703,0.15419382,95582.0,95572.0,0.010466]
[1768776922295,0.15419382,95582.0,95573.0,0.010466]
[1768776922500,0.15419382,95582.0,95572.0,0.010466]
[1768776922800,0.15632721,95590.0,95568.0,0.06543637]
[1768776922995,0.15632721,95587.0,95575.0,0.010466]
[1768776923195,0.20632721,95587.0,95575.0,0.010466]
[1768776923687,0.20632721,95587.0,95577.0,0.010466]
[1768776923892,0.20632721,95587.0,95572.0,0.010466]
[1768776924089,0.20632721,95587.0,95575.0,0.010466]
[1768776924302,0.20632721,95587.0,95572.0,0.010466]
[1768776924303,0.20632721,95587.0,95576.0,0.010466]
[1768776925399,0.14386942,95587.0,95576.0,0.010466]
[1768776925598,0.10419382,95586.0,95569.0,0.17014337]
[1768776925798,0.10419382,95580.0,95575.0,0.010466]
[1768776926002,0.05,95580.0,95573.0,0.010466]
[1768776926305,0.05,95580.0,95574.0,0.010466]
[1768776929803,0.03,95580.0,95571.0,0.06543637]
[1768776930105,0.03,95580.0,95575.0,0.010466]
[1768776930305,0.08,95590.0,95575.0,0.010466]
[1768776930506,0.15419382,95590.0,95575.0,0.010466]
[1768776930711,0.15419382,95590.0,95571.0,0.07590337]
[1768776931206,0.02210538,95589.0,95571.0,0.07590337]
[1768776931404,0.02210538,95588.0,95575.0,0.010466]
[1768776931599,0.02210538,95587.0,95575.0,0.010466]
[1768776931799,0.02210538,95586.0,95572.0,0.010466]
[1768776931995,0.02210538,95586.0,95569.0,0.09654201]
[1768776931996,0.15632721,95581.0,95569.0,0.00230201]
[1768776932203,0.15632721,95574.0,95567.0,0.010467]
[1768776932410,0.20632721,95574.0,95564.0,0.09424]
[1768776932707,0.31052103,95574.0,95563.0,0.09424]
[1768776932907,0.31052103,95574.0,95568.0,0.010467]
[1768776933110,0.20632721,95574.0,95567.0,0.010467]
[1768776934405,0.20632721,95574.0,95568.0,0.010467]
[1768776935915,0.20632721,95574.0,95567.0,0.010467]
[1768776937008,0.20632721,95574.0,95568.0,0.010467]
[1768776938914,0.20632721,95574.0,95565.0,0.010467]
[1768776939604,0.20632721,95574.0,95566.0,0.010467]
[1768776940507,0.17797295,95568.0,95557.0,0.05620355]
[1768776940705,0.17797295,95565.0,95553.0,0.05620355]
[1768776940907,0.22797295,95565.0,95552.0,0.15044355]
[1768776941103,0.14515632,95565.0,95552.0,0.15044355]
[1768776941503,0.14515632,95565.0,95555.0,0.010468]
[1768776942516,0.14515632,95565.0,95552.0,0.09424]
[1768776942517,0.14515632,95565.0,95553.0,0.010468]
[1768776942701,0.17797295,95563.0,95552.0,0.104709]
[1768776943009,0.22797295,95563.0,95552.0,0.104709]
[1768776943214,0.22797295,95563.0,95553.0,0.010469]
[1768776943512,0.14515632,95563.0,95552.0,0.09424]
[1768776945513,0.14515632,95563.0,95552.0,0.104709]
[1768776945912,0.14515632,95563.0,95552.0,0.09424]
[1768776947815,0.05,95563.0,95552.0,0.09424]
[1768776948115,0.05,95563.0,95554.0,0.010468]
[1768776948315,0.05,95563.0,95553.0,0.010469]
[1768776948518,0.05,95563.0,95554.0,0.010468]
[1768776948814,0.05,95563.0,95553.0,0.010469]
[1768776949419,0.05,95563.0,95552.0,0.104709]
[1768776950716,0.05,95563.0,95554.0,0.010468]
[1768776950914,0.05,95563.0,95553.0,0.010469]
[1768776951115,0.05,95563.0,95552.0,0.09424]
[1768776951317,0.05,95563.0,95554.0,0.010468]
[1768776951509,0.05,95563.0,95552.0,0.104709]
[1768776952017,0.05,95563.0,95553.0,0.010469]
[1768776952212,0.05,95563.0,95552.0,0.104709]
[1768776952414,0.05,95563.0,95552.0,0.09424]
[1768776952717,0.05,95563.0,95553.0,0.010469]
[1768776953521,0.05,95563.0,95554.0,0.010468]
[1768776954117,0.05,95563.0,95552.0,0.09424]
[1768776954323,0.05,95563.0,95552.0,0.104709]
[1768776954623,0.05,95563.0,95552.0,0.09424]
[1768776955221,0.05,95563.0,95552.0,0.104709]
[1768776955622,0.05,95563.0,95552.0,0.09424]
[1768776964930,0.05,95563.0,95553.0,0.010469]
[1768776965430,0.05,95563.0,95552.0,0.104709]
[1768776966933,0.010468,95559.0,95549.0,0.0023025]
[1768776967236,0.010468,95557.0,95549.0,0.0023025]
[1768776967537,0.010468,95555.0,95549.0,0.0023025]
[1768776967826,0.09598564,95552.0,95541.0,1.20084355]
[1768776968026,0.14598564,95552.0,95542.0,0.09424]
[1768776968523,0.16466282,95552.0,95542.0,0.09424]
[1768776968723,0.16466282,95552.0,95541.0,1.20084355]
[1768776968724,0.15419382,95552.0,95541.0,0.09424]
[1768776968927,0.05,95552.0,95541.0,0.09424]
[1768776969131,0.010469,95551.0,95541.0,0.09424]
[1768776969332,0.060469,95551.0,95541.0,0.09424]